bitfinex/quotes_ETHUSD_20250508
["timestamp","ask_amount","ask_price","bid_price","bid_amount"]
[1746709079976,5.10101107,1960.4,1960.2,0.7645]
[1746709080151,0.8075,1960.6,1960.0,5.48272732]
[1746709080352,5.10135124,1960.3,1960.0,5.48272732]
[1746709080550,5.10141832,1960.3,1960.0,5.48272732]
[1746709080784,5.10169422,1960.2,1960.0,0.7645]
[1746709080984,5.10152025,1960.2,1960.0,0.38416696]
[1746709081289,0.8304,1960.3,1959.6,2.81404577]
[1746709081584,0.8304,1960.3,1959.7,3.0]
[1746709081585,5.10213471,1960.0,1959.7,3.0]
[1746709081784,5.10192282,1960.1,1959.7,3.0]
[1746709081986,5.10152025,1960.2,1959.8,6.82076745]
[1746709082161,5.10152025,1960.2,1959.9,0.7589]
[1746709082487,5.10152025,1960.2,1959.8,1.71822732]
[1746709082684,5.10187474,1960.1,1959.8,1.71822732]
[1746709083369,5.10187474,1960.1,1959.8,6.82078355]
[1746709083691,5.10169019,1960.2,1959.8,8.38901695]
[1746709084015,10.65416934,1960.4,1960.1,0.8243]
[1746709084219,5.10126483,1960.3,1960.1,0.8243]
[1746709084513,10.65416934,1960.4,1960.1,0.8243]
[1746709084514,5.10116934,1960.4,1960.1,0.8243]
[1746709084721,5.10087464,1960.5,1960.2,1.71822732]
[1746709084921,2.26822732,1961.2,1960.4,1.71822732]
[1746709084922,0.8325,1960.8,1960.4,1.71822732]
[1746709085085,0.8325,1960.8,1960.4,2.54252732]
[1746709085086,5.93258686,1960.8,1960.4,2.54252732]
[1746709085494,5.10008686,1960.8,1960.4,7.64341511]
[1746709085894,5.09982868,1960.9,1960.4,7.64335274]
[1746709086124,5.93204621,1961.0,1960.6,6.81861773]
[1746709086422,5.09981746,1960.9,1960.6,1.71822732]
[1746709086619,5.09999542,1960.8,1960.6,1.71822732]
[1746709086921,5.09980554,1960.9,1960.6,1.71822732]
[1746709087620,5.09932534,1961.1,1960.6,6.81855413]
[1746709087787,5.93143848,1961.2,1960.8,5.09984516]
[1746709087987,5.09934005,1961.1,1960.7,0.8243]
[1746709088206,5.09934005,1961.1,1960.7,5.92446672]
[1746709088593,5.0992092,1961.1,1960.7,5.92427988]
[1746709088901,5.93157602,1961.2,1960.8,5.09986682]
[1746709089495,5.09907602,1961.2,1960.8,5.09986682]
[1746709089695,5.0988178,1961.3,1960.9,5.09956259]
[1746709089896,5.0988178,1961.3,1961.0,0.7809]
[1746709090101,5.09908031,1961.2,1961.0,0.7809]
[1746709090340,5.09908031,1961.2,1960.8,5.88073291]
[1746709090540,5.09907421,1961.2,1960.8,5.88073291]
[1746709090736,5.09929004,1961.1,1960.8,0.7809]
[1746709091249,5.09946984,1961.0,1960.6,8.8811961]
[1746709091418,5.09931756,1961.1,1960.7,5.10021459]
[1746709091758,5.09944192,1961.0,1960.7,5.10021459]
[1746709092241,5.09924735,1961.1,1960.7,5.10021459]
[1746709092437,5.91957726,1961.2,1960.8,5.09993658]
[1746709092615,5.09907726,1961.2,1960.9,0.7809]
[1746709093310,5.09811779,1961.6,1961.1,3.2962172]
[1746709093516,5.09848164,1961.4,1961.1,3.2962172]
[1746709093749,10.19661743,1961.5,1961.2,0.12168299]
[1746709093956,5.09825358,1961.5,1961.2,0.12168299]
[1746709094110,5.09825358,1961.5,1961.1,8.39533176]
[1746709094312,5.09825358,1961.5,1961.3,0.11855637]
[1746709094512,5.09825358,1961.5,1961.2,0.11865696]
[1746709094706,5.09825358,1961.5,1961.4,0.11769944]
[1746709094939,5.09872388,1961.3,1961.0,0.7809]
[1746709096255,5.09894048,1961.2,1961.0,0.7809]
[1746709096747,5.09872388,1961.3,1961.0,0.7809]
[1746709097522,5.09892398,1961.2,1961.0,0.7809]
[1746709097722,5.09892398,1961.2,1960.9,0.39217736]
[1746709097924,5.09892398,1961.2,1960.8,9.21274238]
[1746709098420,5.09872388,1961.3,1960.9,5.09967724]
[1746709098625,5.09872388,1961.3,1960.9,5.15053675]
[1746709098826,5.09872388,1961.3,1961.0,0.7693]
[1746709099023,5.09849326,1961.4,1961.0,5.86869987]
[1746709099225,5.09849326,1961.4,1961.0,7.00331586]
[1746709099850,5.09869985,1961.3,1961.0,7.00331586]
[1746709100959,5.09855733,1961.4,1961.0,7.00331586]
[1746709102227,5.0986806,1961.3,1961.0,7.00331586]
[1746709102427,5.09856799,1961.4,1961.0,7.00331586]
[1746709102655,5.09867413,1961.3,1961.0,7.00331586]
[1746709103337,5.09868379,1961.3,1961.0,7.00331586]
[1746709103655,5.09857061,1961.4,1961.0,7.00331586]
[1746709103861,10.19721725,1961.4,1961.0,7.00331586]
[1746709104081,5.09870967,1961.3,1961.0,1.90391599]
[1746709104357,5.09932131,1961.1,1960.9,0.37791527]
[1746709104525,5.09943906,1961.0,1960.8,0.8246]
[1746709105445,5.09996388,1960.8,1960.6,0.7841]
[1746709105642,5.09989946,1960.9,1960.6,0.7841]
[1746709106031,5.09960235,1961.0,1960.6,0.7841]
[1746709106417,5.537,1961.5,1960.6,5.88449757]
[1746709106623,5.09884516,1961.3,1960.9,5.09958563]
[1746709106864,5.09901892,1961.2,1960.8,9.19413125]
[1746709107879,5.09901892,1961.2,1960.8,4.0943172]
[1746709108084,5.09883591,1961.3,1960.9,5.0996927]
[1746709108283,5.0989374,1961.2,1960.9,5.0996927]
[1746709108888,5.09830097,1961.5,1961.1,9.20108347]
[1746709109055,5.09830097,1961.5,1961.2,0.10909548]
[1746709109256,5.09830097,1961.5,1961.2,5.20796029]
[1746709109452,5.09830097,1961.5,1961.3,0.10861662]
[1746709109850,0.7696,1961.7,1961.3,1.71576911]
[1746709110077,5.09834341,1961.5,1961.4,0.1081378]
[1746709110392,5.88444341,1961.5,1961.4,0.1081378]
[1746709110882,5.09931082,1961.1,1960.9,0.8125]
[1746709111173,5.09931082,1961.1,1961.0,0.11005335]
[1746709111677,5.09898774,1961.2,1961.0,0.11005335]
[1746709113651,10.19813498,1961.2,1961.0,0.11005335]
[1746709113949,5.09898774,1961.2,1961.0,0.11005335]
[1746709115292,5.09917903,1961.1,1961.0,0.11005335]
[1746709116288,5.09906359,1961.2,1961.0,0.11005335]
[1746709116485,6.3231,1961.5,1961.0,0.11005335]
[1746709116685,5.88435975,1961.5,1961.1,5.09908395]
[1746709116876,5.09825975,1961.5,1961.2,1.38869845]
[1746709117073,5.09825975,1961.5,1961.2,0.87879006]
[1746709117587,5.09841507,1961.4,1961.2,0.87879006]
[1746709122992,5.09825696,1961.5,1961.2,0.87879006]
[1746709123146,5.0981553,1961.5,1961.2,0.87879006]
[1746709123590,5.09815628,1961.5,1961.2,0.87879006]
[1746709124187,5.09865905,1961.3,1961.2,0.10919006]
[1746709124578,5.09865905,1961.3,1960.9,5.48987247]
[1746709124780,5.09892104,1961.2,1961.0,0.54898725]
[1746709125480,0.814,1961.6,1961.1,0.8009]
[1746709125792,5.09836484,1961.5,1961.1,5.90005489]
[1746709125993,5.09841331,1961.4,1961.1,5.90005489]
[1746709126887,10.19669922,1961.5,1961.1,5.90005489]
[1746709127076,10.19669922,1961.5,1961.2,0.59000549]
[1746709127388,5.09832124,1961.5,1961.2,5.68890514]
[1746709127590,5.09832124,1961.5,1961.2,0.59000549]
[1746709127765,5.09917903,1961.1,1961.0,0.7608]
[1746709128168,5.09917903,1961.1,1960.9,0.39017561]
[1746709128364,5.09917903,1961.1,1960.8,0.7608]
[1746709128784,5.91844407,1961.4,1960.9,5.09966665]
[1746709128785,5.09891012,1961.3,1960.9,5.09966665]
[1746709128986,5.09901706,1961.2,1960.9,0.38407888]
[1746709129160,5.09901706,1961.2,1960.9,1.13444485]
[1746709130009,5.09919666,1961.1,1960.9,1.13444485]
[1746709130483,5.09919666,1961.1,1960.8,5.86072556]
[1746709131099,5.09909973,1961.2,1960.8,5.86072556]
[1746709131900,5.09909973,1961.2,1960.8,7.57722901]
[1746709132195,5.09919014,1961.1,1960.8,2.47730345]
[1746709132391,10.19859061,1961.1,1960.8,0.7608]
[1746709132592,5.09919014,1961.1,1960.8,2.47730345]
[1746709132896,5.09919014,1961.1,1960.8,3.23504131]
[1746709133884,5.09907343,1961.2,1960.8,3.23504131]
[1746709134116,5.09907343,1961.2,1960.8,8.33483337]
[1746709134480,10.19823685,1961.2,1960.8,8.33483337]
[1746709134685,5.09907343,1961.2,1960.8,3.23504131]
[1746709134892,5.09907343,1961.2,1960.8,8.33496603]
[1746709135896,5.09876295,1961.3,1961.0,1.71650345]
[1746709136300,5.09842573,1961.4,1961.2,1.71650345]
[1746709137400,5.09843351,1961.4,1961.2,1.71650345]
[1746709138688,5.09843351,1961.4,1961.3,0.10875851]
[1746709139400,5.09826642,1961.5,1961.3,0.10875851]
[1746709139606,5.0983991,1961.4,1961.3,0.10875851]
[1746709140103,5.0983991,1961.4,1961.1,2.52620345]
[1746709140286,5.0983991,1961.4,1961.3,0.10866393]
[1746709140492,5.09828465,1961.5,1961.2,0.10914282]
[1746709140889,5.09871471,1961.3,1960.9,8.81158751]
[1746709141108,0.8225,1961.6,1961.3,0.10866393]
[1746709141109,5.92108215,1961.4,1961.3,0.10866393]
[1746709141399,5.09878974,1961.3,1960.9,7.97821172]
[1746709142281,5.09878974,1961.3,1960.9,7.97805971]
[1746709142480,5.09866928,1961.3,1961.0,5.09943445]
[1746709142913,5.09866928,1961.3,1960.9,7.97804505]
[1746709143095,5.09866928,1961.3,1960.9,10.13813257]
[1746709143295,10.19753645,1961.3,1960.9,10.13813257]
[1746709143496,5.09866928,1961.3,1960.9,10.13813257]
[1746709143875,5.09892035,1961.2,1960.9,7.97804505]
[1746709145086,5.09881158,1961.3,1960.9,7.97804505]
[1746709145480,5.09881158,1961.3,1960.9,7.97809947]
[1746709145998,5.09905734,1961.2,1960.9,1.16204869]
[1746709146580,5.09905734,1961.2,1960.9,6.26172865]
[1746709146915,5.09881584,1961.3,1960.9,6.26172865]
[1746709147206,5.09897199,1961.2,1960.9,1.16204869]
[1746709147510,5.09897199,1961.2,1960.9,6.26174542]
[1746709147711,5.09881614,1961.3,1960.9,6.26174542]
[1746709148215,10.19771115,1961.3,1960.9,6.26174542]
[1746709149421,5.09895873,1961.2,1960.9,6.26174542]
[1746709150110,5.09874831,1961.3,1960.9,6.26174542]
[1746709150626,5.09874831,1961.3,1960.9,6.26158908]
[1746709150785,5.09874831,1961.3,1960.9,7.56938162]
[1746709151292,5.09874831,1961.3,1960.9,6.26149239]
[1746709151629,11.01969917,1961.4,1961.0,6.81586391]
[1746709151920,5.0986774,1961.3,1961.0,6.81586391]
[1746709152095,5.0986774,1961.3,1961.0,1.71650345]
[1746709153041,5.92107059,1961.4,1961.0,6.81589652]
[1746709153238,5.09857059,1961.4,1961.0,8.12365657]
[1746709153419,5.09868766,1961.3,1961.0,3.0242635]
[1746709153621,5.09868766,1961.3,1961.1,0.1103547]
[1746709154020,5.09857802,1961.4,1961.1,0.1103547]
[1746709154543,10.19719634,1961.4,1961.1,0.1103547]
[1746709154934,5.09857802,1961.4,1961.1,0.1103547]
[1746709155107,5.09867433,1961.3,1961.1,0.1103547]
[1746709155641,5.09891902,1961.2,1961.1,0.1103547]
[1746709155937,5.09891902,1961.2,1960.9,1.16204869]
[1746709156239,5.09891902,1961.2,1961.0,0.11083371]
[1746709157312,10.19805427,1961.2,1961.0,0.11083371]
[1746709157608,5.09917903,1961.1,1961.0,0.11083371]
[1746709157813,5.09891902,1961.2,1961.0,0.11083371]
[1746709158026,5.09895272,1961.2,1961.0,0.11083371]
[1746709158952,5.09899873,1961.2,1961.0,0.11083371]
[1746709159947,5.09917903,1961.1,1961.0,0.11083371]
[1746709162552,5.09917903,1961.1,1960.8,1.71650345]
[1746709162848,5.09917903,1961.1,1960.9,0.11131277]
[1746709163050,5.09896501,1961.2,1960.9,0.11131277]
[1746709163253,5.0990031,1961.2,1960.9,0.11131277]
[1746709163558,10.19813516,1961.2,1960.9,0.11131277]
[1746709163716,5.0990031,1961.2,1960.9,0.11131277]
[1746709164049,5.0990031,1961.2,1960.9,0.48771279]
[1746709164247,10.19818105,1961.2,1960.9,0.48771279]
[1746709164427,5.0990031,1961.2,1960.9,0.48771279]
[1746709164855,5.09920696,1961.1,1960.9,0.48771279]
[1746709165056,5.09905295,1961.2,1960.9,0.11131277]
[1746709165231,5.09938275,1961.1,1960.9,0.11131277]
[1746709165434,5.09943906,1961.0,1960.9,0.11131277]
[1746709166434,5.09943906,1961.0,1960.7,0.7536]
[1746709166718,5.09943906,1961.0,1960.9,0.11142111]
[1746709167515,5.09943906,1961.0,1960.7,1.51064163]
[1746709167719,5.09943906,1961.0,1960.8,0.11190022]
[1746709168964,5.09930487,1961.1,1960.8,1.82840367]
[1746709169267,10.19869188,1961.1,1960.8,1.82840367]
[1746709169667,5.09930487,1961.1,1960.8,1.82840367]
[1746709170130,5.09930487,1961.1,1960.8,2.1623082]
[1746709170326,5.09923629,1961.1,1960.8,7.26217542]
[1746709170531,5.09905918,1961.2,1960.8,2.1623082]
[1746709170760,5.09929619,1961.1,1960.8,2.1623082]
[1746709171732,5.09909248,1961.2,1960.8,7.26218664]
[1746709172058,5.09919007,1961.1,1960.8,2.1623082]
[1746709172366,5.09919007,1961.1,1960.8,7.26225475]
[1746709172772,5.09919007,1961.1,1960.8,2.1623082]
[1746709173169,5.09910706,1961.2,1960.8,7.26219005]
[1746709173471,5.85331164,1961.3,1960.8,7.26219005]
[1746709173773,5.09928736,1961.1,1960.8,2.1623082]
[1746709174075,5.09928736,1961.1,1960.8,7.26224796]
[1746709174479,5.09928736,1961.1,1960.8,2.1623082]
[1746709174661,5.09928736,1961.1,1960.8,7.26220476]
[1746709174858,5.85330848,1961.3,1961.0,1.71650345]
[1746709175062,5.09894383,1961.2,1961.0,1.71650345]
[1746709175266,5.09894383,1961.2,1961.1,0.11046303]
[1746709175764,5.09894383,1961.2,1960.9,5.09957782]
[1746709175965,5.09894383,1961.2,1961.0,0.11094205]
[1746709177075,5.09894383,1961.2,1960.8,6.81635625]
[1746709177237,5.09894383,1961.2,1961.1,0.11046303]
[1746709177432,5.09894383,1961.2,1960.8,6.81635625]
[1746709177771,5.09894383,1961.2,1960.8,11.91613291]
[1746709177982,5.09894383,1961.2,1960.9,0.11139944]
[1746709178438,5.09894383,1961.2,1960.9,5.21100128]
[1746709179473,5.09894383,1961.2,1960.9,0.48731378]
[1746709179675,5.09894383,1961.2,1960.9,5.58700192]
[1746709179848,5.09894383,1961.2,1960.9,0.48731378]
[1746709183183,5.09922384,1961.1,1960.9,0.48731378]
[1746709183384,5.09943906,1961.0,1960.9,0.11139944]
[1746709183687,10.19912759,1961.0,1960.7,6.8336]
[1746709183879,5.09943906,1961.0,1960.9,0.11106833]
[1746709184087,10.19912759,1961.0,1960.8,0.11154743]
[1746709184282,5.09943906,1961.0,1960.9,0.11106833]
[1746709184592,5.09943906,1961.0,1960.7,13.65031021]
[1746709184742,5.09943906,1961.0,1960.8,0.11154743]
[1746709185847,5.90289911,1960.9,1960.8,0.11154743]
[1746709186275,5.10004784,1960.8,1960.5,1.98262489]
[1746709186711,5.10028152,1960.7,1960.5,1.98262489]
[1746709186857,5.10047944,1960.6,1960.5,0.26612144]
[1746709187180,5.10047944,1960.6,1960.4,0.8043]
[1746709187373,5.10028652,1960.7,1960.4,0.8043]
[1746709187556,5.09980576,1960.9,1960.5,1.71650345]
[1746709187758,5.10012441,1960.8,1960.5,2.47866767]
[1746709187964,5.10004477,1960.8,1960.5,2.47866767]
[1746709188164,5.10004477,1960.8,1960.5,7.57939392]
[1746709188687,5.10017893,1960.8,1960.5,2.47866767]
[1746709188887,5.10017893,1960.8,1960.5,1.71650345]
[1746709189073,11.41158619,1961.1,1960.5,1.71650345]
[1746709189273,5.10005576,1960.8,1960.5,1.71650345]
[1746709189770,5.09985312,1960.9,1960.7,1.71650345]
[1746709190617,10.19976592,1960.9,1960.7,1.71650345]
[1746709190907,5.09985312,1960.9,1960.7,1.71650345]
[1746709191113,5.0999592,1960.8,1960.7,1.71650345]
[1746709191619,5.09982562,1960.9,1960.7,1.71650345]
[1746709191819,5.0999592,1960.8,1960.7,1.71650345]
[1746709192113,5.09989657,1960.9,1960.7,1.71650345]
[1746709192503,5.0999592,1960.8,1960.7,1.71650345]
[1746709194234,5.09983838,1960.9,1960.7,1.71650345]
[1746709194417,5.0999592,1960.8,1960.7,1.71650345]
[1746709196693,5.10036483,1960.7,1960.5,1.71650345]
[1746709197786,5.10047944,1960.6,1960.5,1.71650345]
[1746709198620,5.10047944,1960.6,1960.5,1.83013887]
[1746709198929,5.10006619,1960.8,1960.5,1.83013887]
[1746709199118,5.10006619,1960.8,1960.7,1.71650345]
[1746709199437,5.10006619,1960.8,1960.7,1.82918044]
[1746709200440,5.0997203,1960.9,1960.7,1.82918044]
[1746709200733,10.19964283,1960.9,1960.7,1.82918044]
[1746709200906,5.0999592,1960.8,1960.7,1.82918044]
[1746709201320,5.0997203,1960.9,1960.7,1.82918044]
[1746709201523,5.0997203,1960.9,1960.7,2.62178044]
[1746709202130,5.09954875,1961.0,1960.7,2.88395848]
[1746709202421,5.09954875,1961.0,1960.9,1.71650345]
[1746709202628,5.09973484,1960.9,1960.7,2.62178044]
[1746709202830,5.0999592,1960.8,1960.7,0.11267699]
[1746709203830,5.09979164,1960.9,1960.7,2.63978044]
[1746709204230,5.09954685,1961.0,1960.7,2.90375848]
[1746709204819,5.84952415,1961.3,1960.9,1.71650345]
[1746709204820,5.09905298,1961.2,1960.9,1.71650345]
[1746709205329,5.84959386,1961.3,1960.9,1.71650345]
[1746709205643,5.098517,1961.4,1961.1,1.71650345]
[1746709205804,5.09823924,1961.5,1961.3,1.71650345]
[1746709206295,10.19659956,1961.5,1961.3,1.71650345]
[1746709206635,5.0983991,1961.4,1961.3,1.71650345]
[1746709207338,5.09865512,1961.4,1961.1,1.71650345]
[1746709207536,29.7763369,1961.7,1961.1,1.71650345]
[1746709208212,5.09857386,1961.4,1961.1,1.71650345]
[1746709208415,5.09857386,1961.4,1961.1,2.47641476]
[1746709208621,29.7763369,1961.7,1960.9,6.08]
[1746709208622,5.09943906,1961.0,1960.9,6.08]
[1746709208932,5.09961521,1961.0,1960.7,0.11267699]
[1746709209336,10.59208979,1961.2,1960.9,0.8074]
[1746709209515,10.59208979,1961.2,1961.0,1.71650345]
[1746709209710,5.09901657,1961.2,1961.0,1.71650345]
[1746709210337,5.09903572,1961.2,1961.0,1.71650345]
[1746709210942,5.0988231,1961.3,1961.0,1.71650345]
[1746709211122,5.09850327,1961.4,1961.2,1.71650345]
[1746709211436,10.59150327,1961.4,1961.2,1.71650345]
[1746709211837,5.09850327,1961.4,1961.2,1.71650345]
[1746709213436,5.09814487,1961.5,1961.2,1.71650345]
[1746709213625,10.59093822,1961.6,1961.4,1.71650345]
[1746709213822,5.493,1961.6,1961.1,0.751]
[1746709214006,5.09850623,1961.4,1961.2,1.71650345]
[1746709214497,5.09823297,1961.5,1961.2,1.71650345]
[1746709216803,5.09823297,1961.5,1961.2,1.97060966]
[1746709217002,5.09803436,1961.6,1961.2,7.06949626]
[1746709217242,10.19612545,1961.6,1961.2,7.06949626]
[1746709217406,5.09803436,1961.6,1961.2,7.06949626]
[1746709217808,5.09815374,1961.5,1961.3,0.12779423]
[1746709218738,5.0983991,1961.4,1961.3,0.12779423]
[1746709219105,8.13240255,1961.4,1961.3,0.12779423]
[1746709219447,5.1002193,1960.7,1960.6,1.71650345]
[1746709219600,5.10050366,1960.6,1960.4,2.48770345]
[1746709219922,5.10034347,1960.7,1960.4,2.76248808]
[1746709220113,5.09954738,1961.0,1960.7,1.71650345]
[1746709220297,5.09943906,1961.0,1960.9,1.71650345]
[1746709220516,8.09795821,1961.6,1961.0,0.763]
[1746709220517,0.8251,1961.5,1961.0,0.763]
[1746709220753,5.09835203,1961.5,1961.2,1.71650345]
[1746709221112,5.09840465,1961.4,1961.2,1.71650345]
[1746709221526,5.09865905,1961.3,1961.2,1.71650345]
[1746709221933,5.09853853,1961.4,1961.2,1.71650345]
[1746709222740,5.09841699,1961.4,1961.2,1.71650345]
[1746709223144,5.09749642,1961.8,1961.3,3.7674]
[1746709223322,5.09749642,1961.8,1961.5,1.71650345]
[1746709223323,5.09777213,1961.7,1961.5,1.71650345]
[1746709223740,5.09803086,1961.6,1961.3,5.48390345]
[1746709224354,5.09778463,1961.7,1961.3,5.48390345]
[1746709224654,5.09752727,1961.8,1961.5,1.71650345]
[1746709225019,5.09726829,1961.9,1961.5,1.71650345]
[1746709225221,0.7824,1962.1,1961.7,1.71650345]
[1746709225222,10.19361458,1962.1,1961.7,1.71650345]
[1746709225423,5.09679635,1962.1,1961.9,1.71650345]
[1746709225867,5.476,1962.4,1961.9,2.54890345]
[1746709226027,6.2985,1962.4,1961.9,2.54890345]
[1746709226234,5.09732379,1961.9,1961.7,0.7635]
[1746709226531,5.09732379,1961.9,1961.5,3.0]
[1746709226532,5.09761941,1961.7,1961.5,2.53950345]
[1746709226749,5.09787694,1961.7,1961.5,0.823]
[1746709226934,5.09787694,1961.7,1961.6,0.11797749]
[1746709227526,5.09743113,1961.8,1961.6,0.11797749]
[1746709227527,5.0974682,1961.8,1961.6,0.11797749]
[1746709227722,5.09761941,1961.7,1961.6,0.11797749]
[1746709229739,5.09818749,1961.5,1961.3,2.51640345]
[1746709230431,5.0983991,1961.4,1961.3,1.71650345]
[1746709230864,5.09799853,1961.6,1961.3,1.71650345]
[1746709231155,5.09825493,1961.5,1961.3,1.71650345]
[1746709231520,0.7546,1961.8,1961.3,1.71650345]
[1746709231725,5.475,1962.2,1961.7,1.71650345]
[1746709231935,5.09735956,1961.8,1961.7,1.71650345]
[1746709232370,5.09726351,1961.9,1961.7,1.71650345]
[1746709232670,5.09732965,1961.9,1961.7,1.71650345]
[1746709232861,5.09732603,1961.9,1961.7,1.71650345]
[1746709233167,5.09695918,1962.0,1961.7,1.71650345]
[1746709233168,5.09703533,1962.0,1961.8,0.8257]
[1746709233934,5.09709975,1961.9,1961.8,0.8257]
[1746709234261,10.1941083,1962.0,1961.8,0.8257]
[1746709234782,5.09505903,1962.7,1962.0,5.85315946]
[1746709234783,5.09590992,1962.4,1962.0,5.85315946]
[1746709234987,5.09569894,1962.5,1962.3,1.71650345]
[1746709235483,5.09502216,1962.7,1962.4,0.7885]
[1746709235687,0.8308,1962.8,1961.9,2.50500345]
[1746709235888,5.09559371,1962.5,1961.9,2.50500345]
[1746709236097,5.09643835,1962.2,1961.9,2.50500345]
[1746709236456,5.09610844,1962.3,1961.9,2.50500345]
[1746709236654,5.09647029,1962.2,1961.9,2.50500345]
[1746709236853,5.09683995,1962.0,1961.8,1.71650345]
[1746709237189,5.09663872,1962.1,1961.8,1.71650345]
[1746709237992,5.09644187,1962.2,1961.8,1.71650345]
[1746709238188,5.91519048,1962.3,1962.0,1.71650345]
[1746709238576,5.09640666,1962.2,1962.0,1.71650345]
[1746709239291,5.475,1962.4,1962.0,1.71650345]
[1746709239292,10.57092197,1962.4,1962.0,1.71650345]
[1746709239456,5.475,1962.4,1962.2,1.71650345]
[1746709239788,5.09678593,1962.1,1961.9,1.71650345]
[1746709240179,5.09678593,1962.1,1961.8,0.8063]
[1746709240378,5.09649577,1962.2,1961.8,5.90364311]
[1746709240688,5.09649577,1962.2,1961.8,0.8063]
[1746709241080,0.7676,1962.3,1961.9,1.71650345]
[1746709241283,5.09650489,1962.2,1961.9,6.81358739]
[1746709241487,5.09650489,1962.2,1961.9,1.71650345]
[1746709242296,5.09650489,1962.2,1961.9,6.81360144]
[1746709242480,5.09650489,1962.2,1961.9,1.71650345]
[1746709243195,5.09592834,1962.4,1962.1,1.71650345]
[1746709243495,5.09535374,1962.6,1962.3,1.71650345]
[1746709244394,5.0953015,1962.6,1962.3,6.81256018]
[1746709244594,5.0952992,1962.6,1962.3,1.71650345]
[1746709244899,5.09486144,1962.8,1962.5,1.71650345]
[1746709245085,5.09443103,1963.0,1962.7,1.71650345]
[1746709245264,5.09452358,1962.9,1962.7,1.71650345]
[1746709245464,5.09410992,1963.1,1962.7,6.81143952]
[1746709245701,6.2638,1963.3,1962.6,0.80324855]
[1746709245702,0.7898,1963.3,1962.6,0.7523]
[1746709246012,5.09496664,1962.8,1962.6,0.7523]
[1746709246206,11.35740555,1963.3,1962.4,7.19050345]
[1746709246207,5.85694458,1962.9,1962.4,6.2301]
[1746709246492,5.09476258,1962.8,1962.5,1.71650345]
[1746709246992,5.09528176,1962.6,1962.5,1.71650345]
[1746709247204,5.09522228,1962.7,1962.5,1.71650345]
[1746709247389,5.09528176,1962.6,1962.4,0.7561]
[1746709247868,5.09520238,1962.7,1962.4,0.7561]
[1746709248064,5.09463186,1962.9,1962.5,6.8118648]
[1746709248264,5.09463186,1962.9,1962.7,1.71650345]
[1746709248661,0.8151,1963.1,1962.7,1.71650345]
[1746709248662,5.09412824,1963.1,1962.7,1.71650345]
[1746709249007,5.09411909,1963.1,1962.8,0.7795]
[1746709249412,5.09385823,1963.2,1962.9,1.71650345]
[1746709249567,5.09401412,1963.1,1962.9,1.71650345]
[1746709249905,5.09492351,1962.8,1962.5,3.7866]
[1746709250106,5.09492351,1962.8,1962.5,9.84604049]
[1746709250409,5.09466529,1962.9,1962.5,6.84604049]
[1746709250558,10.18939114,1962.9,1962.5,6.84604049]
[1746709250909,5.09466529,1962.9,1962.5,6.84604049]
[1746709251106,5.0952675,1962.7,1962.5,0.7866]
[1746709251418,5.09503369,1962.7,1962.5,0.7866]
[1746709252315,5.09491855,1962.8,1962.5,0.7866]
[1746709252867,5.09514644,1962.7,1962.5,0.7866]
[1746709253187,5.09491506,1962.8,1962.5,0.7866]
[1746709253500,5.09492866,1962.8,1962.5,0.7866]
[1746709254504,5.0950644,1962.7,1962.5,0.7866]
[1746709255297,5.09486715,1962.8,1962.5,0.7866]
[1746709255470,10.18984966,1962.8,1962.5,0.7866]
[1746709255669,5.09490202,1962.8,1962.5,0.7866]
[1746709255898,5.09461648,1962.9,1962.5,0.7866]
[1746709256090,5.094297,1963.0,1962.5,7.3307255]
[1746709256396,5.094297,1963.0,1962.6,5.09514218]
[1746709256564,5.09420461,1963.1,1962.7,5.92518024]
[1746709256774,10.18842171,1963.1,1962.7,5.87423256]
[1746709257095,5.09420461,1963.1,1962.7,5.87423256]
[1746709257303,10.18841731,1963.1,1962.7,7.3001601]
[1746709257796,5.09384504,1963.2,1962.8,5.09473982]
[1746709258005,5.09384504,1963.2,1962.7,7.3001601]
[1746709258374,5.09382098,1963.2,1962.7,7.30005717]
[1746709258580,5.09382098,1963.2,1962.8,5.09466432]
[1746709258880,5.09401002,1963.1,1962.8,0.38602659]
[1746709259083,5.09401002,1963.1,1962.7,7.30005717]
[1746709259280,5.09399393,1963.1,1962.8,5.8247428]
[1746709260000,5.09399393,1963.1,1962.8,0.73000572]
[1746709260300,5.09380778,1963.2,1962.8,5.8247003]
[1746709260494,5.88579539,1963.3,1962.8,5.8247003]
[1746709260688,5.09387801,1963.2,1962.8,5.8247003]
[1746709260902,5.09355516,1963.3,1962.9,5.09445563]
[1746709261079,5.09338176,1963.4,1963.0,5.89314124]
[1746709261285,10.18681288,1963.4,1963.0,5.89314124]
[1746709261508,5.09338176,1963.4,1963.0,5.89314124]
[1746709261805,5.09338176,1963.4,1963.0,7.32952065]
[1746709262017,5.09338176,1963.4,1963.0,2.23527941]
[1746709262018,5.0932076,1963.4,1963.0,2.23527941]
[1746709262170,5.0932076,1963.4,1963.0,7.32942076]
[1746709262771,5.09309745,1963.5,1963.1,5.09382838]
[1746709263173,5.09278665,1963.6,1963.1,5.48509117]
[1746709263368,5.09295469,1963.5,1963.2,0.54850912]
[1746709263612,5.0926869,1963.6,1963.2,0.54850912]
[1746709263797,5.09323801,1963.4,1963.2,0.54850912]
[1746709264001,5.09313911,1963.5,1963.2,0.54850912]
[1746709264203,5.09328646,1963.4,1963.2,0.54850912]
[1746709264520,5.09320766,1963.4,1963.2,0.54850912]
[1746709264675,5.09318563,1963.5,1963.2,0.54850912]
[1746709265818,5.89820966,1963.3,1962.6,0.7933]
[1746709265976,5.09461363,1962.9,1962.6,0.7933]
[1746709266747,5.09461363,1962.9,1962.6,5.88856524]
[1746709266878,5.09429811,1963.0,1962.6,5.88856524]
[1746709267218,5.09398633,1963.1,1962.6,1.16707141]
[1746709267420,5.09491681,1962.8,1962.6,1.16707141]
[1746709268125,5.09502216,1962.7,1962.6,1.16707141]
[1746709268296,5.09484737,1962.8,1962.4,0.7603]
[1746709268483,10.18982237,1962.8,1962.4,7.31667361]
[1746709269032,5.09503853,1962.7,1962.4,2.22091909]
[1746709270312,5.09484737,1962.8,1962.4,7.31663885]
[1746709271105,5.09504276,1962.7,1962.4,7.31663885]
[1746709271303,5.09457012,1962.9,1962.4,7.31651855]
[1746709271499,5.09396215,1963.2,1962.7,3.0]
[1746709271682,5.09403465,1963.1,1962.8,0.7751]
[1746709271899,5.09433188,1963.0,1962.8,0.7751]
[1746709273812,5.86999532,1963.3,1962.8,0.7751]
[1746709274023,5.09440448,1963.0,1962.8,0.7751]
[1746709274194,5.09440448,1963.0,1962.8,1.15261]
[1746709274594,5.09414625,1963.1,1962.8,1.15261]
[1746709274911,10.18835849,1963.1,1962.8,1.15261]
[1746709275233,5.0943618,1963.0,1962.8,1.15261]
[1746709276509,10.18886265,1963.0,1962.8,1.15261]
[1746709276710,5.0943618,1963.0,1962.8,1.15261]
[1746709277322,5.09386226,1963.2,1962.8,1.15261]
[1746709277484,5.09415737,1963.1,1962.8,1.15261]
[1746709277901,5.09415737,1963.1,1962.8,6.24736917]